bitfinex-derivatives/quotes_ETHF0:USTF0_20241104
["timestamp","ask_amount","ask_price","bid_price","bid_amount"]
[1730754121225,2.72692,2425.7,2425.6,4.10174378]
[1730754121827,0.41248,2425.9,2425.8,0.41249]
[1730754122538,0.4125,2425.8,2425.7,1.5292]
[1730754122829,0.41249,2425.9,2425.8,0.41249]
[1730754123634,1.1638,2426.0,2425.7,1.1167]
[1730754123635,1.57627,2426.0,2425.7,1.1167]
[1730754123929,1.1638,2426.0,2425.9,0.41248]
[1730754124232,1.1638,2426.0,2425.7,1.1167]
[1730754124233,3.62026,2426.1,2426.0,0.41246]
[1730754124831,3.2078,2426.1,2426.0,0.41246]
[1730754125135,3.62025,2426.1,2426.0,0.41246]
[1730754126326,0.41249,2425.9,2425.8,0.41249]
[1730754126531,4.23893,2426.1,2425.7,0.41251]
[1730754126835,0.41253,2425.6,2425.5,1.77854]
[1730754127042,0.41253,2425.6,2425.5,5.54515193]
[1730754127229,1.1489,2425.8,2425.7,0.41252]
[1730754127430,4.3171,2426.1,2425.7,0.55881193]
[1730754127627,4.3171,2426.1,2426.0,0.41246]
[1730754127941,4.72955,2426.1,2426.0,0.41246]
[1730754128238,4.3171,2426.1,2426.0,0.41246]
[1730754128937,1.1489,2426.2,2426.1,0.41245]
[1730754129334,0.4124,2426.4,2426.0,2.90065814]
[1730754129534,0.4124,2426.4,2426.3,3.2078]
[1730754130041,0.41241,2426.3,2426.2,3.2078]
[1730754130834,0.41241,2426.3,2426.2,3.62023]
[1730754131143,0.4124,2426.4,2426.3,0.4124]
[1730754131841,3.84919,2426.5,2426.4,0.4124]
[1730754132037,2.70889,2426.5,2426.4,0.4124]
[1730754133036,2.2965,2426.5,2426.4,0.4124]
[1730754133236,3.62015,2426.7,2426.6,0.41236]
[1730754133641,2.76984,2426.8,2426.4,5.02985814]
[1730754133847,2.76984,2426.8,2426.7,0.41235]
[1730754134345,2.3575,2426.8,2426.4,5.02985814]
[1730754134542,2.76984,2426.8,2426.7,0.41235]
[1730754135046,2.3575,2426.8,2426.4,5.02985814]
[1730754135337,0.41238,2426.5,2426.4,1.51058]
[1730754135541,0.41238,2426.5,2426.4,0.41238]
[1730754136044,2.3575,2426.8,2426.3,1.0994]
[1730754136342,2.3575,2426.8,2426.4,0.55837943]
[1730754136545,2.3575,2426.8,2426.3,1.0994]
[1730754136845,2.3575,2426.8,2426.5,0.41238]
[1730754136846,0.41237,2426.6,2426.5,0.41238]
[1730754137341,2.3575,2426.8,2426.6,0.41236]
[1730754137342,0.41236,2426.7,2426.6,0.41236]
[1730754137643,0.41235,2426.7,2426.6,0.41235]
[1730754138849,0.4124,2426.5,2426.3,1.0994]
[1730754139151,5.15167,2426.7,2426.2,3.62022]
[1730754139152,0.41241,2426.3,2426.2,3.62022]
[1730754139343,0.41241,2426.3,2426.2,5.47479861]
[1730754139538,0.41241,2426.3,2426.2,3.76637861]
[1730754139744,41.21241,2426.3,2426.2,5.47488748]
[1730754140149,40.8,2426.3,2426.2,5.47488748]
[1730754141852,40.8,2426.3,2426.2,5.47491588]
[1730754142348,41.21241,2426.3,2426.2,5.47491588]
[1730754142751,42.31331,2426.3,2426.2,5.47491588]
[1730754144149,41.9009,2426.3,2426.2,5.47491588]
[1730754144445,2.63371,2426.4,2426.2,5.06248588]
[1730754144650,2.63371,2426.4,2426.3,0.41241]
[1730754144954,43.43371,2426.4,2426.3,0.41241]
[1730754145448,0.41241,2426.3,2426.2,4.91623]
[1730754145656,0.41241,2426.3,2426.2,5.4751553]
[1730754146343,0.41241,2426.3,2426.2,4.91623]
[1730754146848,0.41236,2426.7,2426.6,0.41236]
[1730754147058,2.3454,2426.7,2426.6,0.41236]
[1730754147346,2.3454,2426.7,2426.6,3.62016]
[1730754147559,0.41232,2426.9,2426.8,0.41233]
[1730754147744,45.15,2427.0,2426.9,0.41231]
[1730754147745,44.2893,2427.0,2426.9,0.41231]
[1730754148048,3.90159,2427.0,2426.9,0.41231]
[1730754148252,2.3471,2427.0,2426.9,0.41231]
[1730754149244,2.75939,2427.0,2426.9,0.41231]
[1730754149448,2.3471,2427.0,2426.9,0.41231]
[1730754150549,0.41231,2426.9,2426.8,1.70832]
[1730754150758,0.41231,2426.9,2426.8,1.296]
[1730754150954,1.52901,2426.9,2426.8,1.296]
[1730754151255,0.41235,2426.7,2426.6,3.2078]
[1730754151550,0.41235,2426.7,2426.6,3.62016]
[1730754151751,0.41235,2426.7,2426.6,3.2078]
[1730754151951,0.41235,2426.7,2426.6,3.62015]
[1730754152550,0.41235,2426.7,2426.6,3.2078]
[1730754155050,2.14749,2426.9,2426.4,1.70839]
[1730754155247,1.03087,2426.7,2426.2,7.27995814]
[1730754155462,0.41241,2426.3,2426.2,4.79171]
[1730754155655,0.41241,2426.3,2426.2,4.91621]
[1730754156060,0.41241,2426.3,2426.2,4.5038]
[1730754156362,0.41241,2426.3,2426.2,4.91623]
[1730754156862,0.41241,2426.3,2426.2,1.70843]
[1730754158770,1.53601,2426.4,2426.3,0.41241]
[1730754159662,0.41241,2426.4,2426.3,0.41241]
[1730754160163,0.41246,2426.0,2425.9,6.00688]
[1730754160360,0.41246,2426.1,2426.0,0.41246]
[1730754160567,3.2078,2426.4,2425.9,6.6256]
[1730754160861,0.41242,2426.3,2426.2,0.41243]
[1730754162162,0.41244,2426.2,2426.1,0.41244]
[1730754162359,0.41244,2426.2,2425.9,5.5944]
[1730754162360,1.03106,2426.3,2425.9,4.3674]
[1730754162554,1.1485,2426.1,2426.0,0.41246]
[1730754162752,1.50994,2426.2,2426.1,0.41245]
[1730754163052,0.41244,2426.2,2426.1,0.41244]
[1730754163457,0.41244,2426.2,2426.1,1.63944]
[1730754164163,5.36566,2426.5,2426.1,1.63944]
[1730754164164,4.3347,2426.5,2426.1,1.227]
[1730754164467,5.92539,2426.5,2426.4,0.4124]
[1730754165762,2.71759,2426.5,2426.4,0.4124]
[1730754165962,5.92539,2426.5,2426.4,0.4124]
[1730754167765,4.81837465,2426.8,2426.3,1.148]
[1730754167766,0.41238,2426.6,2426.3,1.148]
[1730754167973,0.41238,2426.6,2426.5,0.41237]
[1730754168466,2.2193,2426.7,2426.3,1.148]
[1730754168672,2.63166,2426.7,2426.6,0.41236]
[1730754169169,0.41237,2426.6,2426.5,0.41237]
[1730754169963,2.2193,2426.7,2426.3,1.148]
[1730754170165,0.41239,2426.5,2426.4,0.97170303]
[1730754170464,2.2193,2426.7,2426.4,0.55931303]
[1730754170662,0.41239,2426.5,2426.4,1.63939]
[1730754170866,0.41239,2426.5,2426.4,2.1986324]
[1730754171067,0.41237,2426.6,2426.5,0.41237]
[1730754171774,2.63165,2426.7,2426.6,0.41236]
[1730754171960,0.41237,2426.6,2426.5,0.41237]
[1730754172161,2.63166,2426.7,2426.6,0.41236]
[1730754172668,0.41237,2426.6,2426.5,0.41237]
[1730754172864,0.41237,2426.6,2426.5,0.97486958]
[1730754173169,0.41237,2426.6,2426.5,0.41237]
[1730754173363,0.41237,2426.6,2426.5,0.97488172]
[1730754176365,2.2193,2426.7,2426.6,0.41236]
[1730754176566,2.2193,2426.7,2426.6,0.97487172]
[1730754177168,2.2193,2426.7,2426.6,0.9751716]
[1730754177468,0.41234,2426.8,2426.7,0.41235]
[1730754177667,4.98062465,2426.9,2426.8,0.41233]
[1730754177874,2.69002465,2427.1,2426.8,0.56276114]
[1730754178163,2.69002465,2427.1,2426.9,0.97495224]
[1730754178164,0.4123,2427.0,2426.9,0.97495224]
[1730754178763,0.4123,2427.0,2426.9,0.4123]
[1730754180770,1.1693,2427.1,2426.7,3.26657]
[1730754180771,0.41233,2426.8,2426.7,0.41233]
[1730754180964,0.41233,2426.8,2426.7,0.97499889]
[1730754181168,0.41233,2426.8,2426.7,0.41233]
[1730754181362,0.41233,2426.8,2426.7,0.5627088]
[1730754181568,0.41234,2426.8,2426.7,0.97504213]
[1730754181969,4.89002465,2427.1,2426.8,0.41231]
[1730754181970,0.41232,2426.9,2426.8,0.41231]
[1730754182168,4.89003465,2427.1,2426.8,0.97504213]
[1730754182475,0.41233,2426.9,2426.8,0.41233]
[1730754182773,0.41233,2426.9,2426.8,0.56280714]
[1730754182960,7.74093,2426.9,2426.6,1.227]
[1730754183166,0.41235,2426.7,2426.6,1.227]
[1730754183374,0.41235,2426.7,2426.6,1.78993263]
[1730754184176,0.41235,2426.7,2426.6,2.20229263]
[1730754184670,0.41235,2426.7,2426.6,1.78993263]
[1730754185069,0.41235,2426.7,2426.6,2.20229263]
[1730754185266,0.41235,2426.7,2426.6,1.78993263]
[1730754185467,0.41235,2426.7,2426.6,2.20229263]
[1730754185973,0.41235,2426.7,2426.6,1.78993263]
[1730754186873,0.41235,2426.7,2426.6,1.227]
[1730754187071,2.69002465,2426.9,2426.6,1.79007618]
[1730754187368,2.69002465,2427.0,2426.6,1.227]
[1730754187572,0.41235,2426.7,2426.6,1.63935]
[1730754187873,0.41234,2426.8,2426.7,0.41233]
[1730754190675,10.22925814,2426.8,2426.3,1.0809233]
[1730754190973,3.31305814,2426.4,2426.3,1.0809233]
[1730754191175,0.41243,2426.2,2426.1,1.62138496]
[1730754191365,44.42023,2426.2,2426.1,1.62138496]
[1730754191676,48.54183,2426.2,2426.1,1.62138496]
[1730754192068,49.69563,2426.2,2426.1,1.62138496]
[1730754192263,48.26405465,2426.2,2426.1,1.62138496]
[1730754192468,45.05625465,2426.2,2426.1,2.03383496]
[1730754192777,45.05625465,2426.2,2426.1,0.41245]
[1730754194665,45.05625465,2426.2,2426.1,0.97562709]
[1730754194865,45.05625465,2426.2,2426.1,0.41245]
[1730754195071,42.36623,2426.2,2426.1,0.41245]
[1730754195472,1.56623,2426.2,2426.1,0.41245]
[1730754196869,42.33652,2426.3,2426.2,0.41243]
[1730754198776,1.53652,2426.3,2426.2,0.41243]
[1730754199371,1.53651,2426.3,2426.2,0.41243]
[1730754199570,1.54891,2426.4,2426.0,3.35786]
[1730754199779,1.0864,2426.6,2426.1,1.59431004]
[1730754199973,0.41239,2426.5,2426.4,0.41238]
[1730754200769,43.0678,2426.6,2426.3,1.242]
[1730754200976,2.68018,2426.6,2426.5,0.41238]
[1730754201177,2.2678,2426.6,2426.5,0.41238]
[1730754201374,2.68016,2426.6,2426.5,0.41238]
[1730754203294,2.2678,2426.6,2426.5,0.41238]
[1730754203473,0.41235,2426.7,2426.4,2.2191]
[1730754203675,7.44806483,2426.8,2426.7,0.41235]
[1730754205385,0.41236,2426.7,2426.6,0.41235]
[1730754206085,3.11207483,2426.7,2426.6,0.41235]
[1730754206276,0.41236,2426.7,2426.6,0.41235]
[1730754206480,3.11207483,2426.7,2426.6,0.41235]
[1730754206679,0.41236,2426.7,2426.6,0.41235]
[1730754207090,3.11207483,2426.7,2426.6,0.41235]
[1730754207388,0.41236,2426.6,2426.5,1.53707]
[1730754208584,0.41238,2426.5,2426.4,1.1212]
[1730754208784,3.73060483,2426.7,2426.4,0.56325847]
[1730754209085,0.4124,2426.4,2426.3,1.6544]
[1730754209286,0.4124,2426.4,2426.3,2.21768295]
[1730754209485,0.4124,2426.4,2426.3,2.78098584]
[1730754210388,0.41239,2426.5,2426.4,0.41238]
[1730754210593,0.41239,2426.5,2426.4,0.97567271]
[1730754212586,0.41239,2426.5,2426.4,0.41238]
[1730754212893,0.41239,2426.5,2426.4,0.97568007]
[1730754213282,0.41239,2426.5,2426.4,1.53897785]
[1730754213688,0.41239,2426.5,2426.4,0.97568007]
[1730754214593,0.41239,2426.5,2426.4,1.53897033]
[1730754214785,0.41239,2426.5,2426.4,0.97568007]
[1730754216085,2.69971483,2426.6,2426.4,1.12658697]
[1730754216280,0.41236,2426.6,2426.5,0.41238]
[1730754216480,0.41236,2426.6,2426.5,2.08155584]
[1730754217893,0.41236,2426.6,2426.5,2.08155081]
[1730754218187,0.41236,2426.6,2426.5,1.51828]
[1730754218384,0.41236,2426.6,2426.5,2.08156177]
[1730754218894,3.11207483,2426.7,2426.6,0.41236]
[1730754219289,3.11207483,2426.7,2426.6,1.57336]
[1730754223597,3.11207483,2426.7,2426.6,1.161]
[1730754223991,0.4124,2426.5,2426.4,0.41238]
[1730754225193,0.4124,2426.5,2426.4,0.97578488]
[1730754225390,0.4124,2426.5,2426.4,0.9758391]
[1730754226992,0.4124,2426.5,2426.4,2.2178391]
[1730754227905,3.11382539,2426.5,2426.4,2.2178391]
[1730754231103,2.70142539,2426.5,2426.4,2.2178391]
[1730754231303,2.70142539,2426.6,2426.4,5.9270591]
[1730754231500,5.90922539,2426.7,2426.6,0.41236]
[1730754231698,3.2078,2426.7,2426.6,0.9758191]
[1730754231903,3.2078,2426.7,2426.6,9.42321809]
[1730754232390,3.2078,2426.7,2426.6,8.52145926]
[1730754232594,3.2078,2426.7,2426.6,9.42321185]
[1730754232996,3.2078,2426.7,2426.6,9.42482327]
[1730754233194,3.62015,2426.7,2426.6,9.42482327]
[1730754233604,3.62015,2426.7,2426.6,5.30402327]
[1730754234102,3.2078,2426.7,2426.6,8.52207664]
[1730754234304,3.2078,2426.7,2426.6,4.40127664]
[1730754234605,3.11376539,2426.8,2426.7,0.41235]
[1730754234807,3.11376539,2426.8,2426.7,0.97656664]
[1730754235302,4.3873,2426.9,2426.7,0.56421664]
[1730754235303,7.50104539,2426.9,2426.7,0.56421664]
[1730754235494,7.50104539,2426.9,2426.6,3.4247]
[1730754235495,7.50104539,2426.9,2426.8,0.41233]
[1730754235696,4.79962,2426.9,2426.8,0.41233]
[1730754236116,7.50269082,2426.9,2426.8,0.41233]
[1730754238201,7.50269082,2426.9,2426.8,0.97669009]
[1730754238409,7.50269082,2426.9,2426.8,0.41233]
[1730754238615,4.79962,2426.9,2426.8,0.41233]
[1730754239110,7.50217533,2426.9,2426.8,0.41233]
[1730754239910,4.79962,2426.9,2426.8,0.41233]
[1730754240405,0.41239,2426.6,2426.5,1.213]
[1730754240606,0.41239,2426.6,2426.5,3.09285781]
[1730754241014,1.58129,2426.6,2426.5,3.09285781]
[1730754241513,1.58129,2426.6,2426.5,2.18977608]
[1730754241704,1.58129,2426.6,2426.5,3.09292569]
[1730754242610,1.1689,2426.6,2426.5,4.42955047]
[1730754243113,3.11484618,2426.8,2426.7,0.41235]
[1730754243314,4.29674618,2426.8,2426.7,0.97677608]
[1730754243811,3.88440618,2426.8,2426.7,0.97677608]
[1730754244006,7.50212618,2426.9,2426.7,1.46769937]
[1730754244202,3.2078,2426.9,2426.8,0.97675608]
[1730754244814,3.62011,2426.9,2426.8,1.88000199]
[1730754245010,3.2078,2426.9,2426.8,1.87999238]
[1730754245211,3.62011,2426.9,2426.8,1.88010026]
[1730754245417,3.62011,2426.9,2426.8,1.88003883]
[1730754245721,3.2078,2426.9,2426.8,1.88002821]
[1730754246513,3.2078,2426.9,2426.8,1.88011441]
[1730754246914,2.70250618,2427.0,2426.9,0.41231]
[1730754247116,2.70250618,2427.1,2427.0,0.41229]
[1730754247315,6.32256618,2427.2,2427.1,0.41228]
[1730754247516,5.91030618,2427.2,2427.1,0.97680927]
[1730754247719,3.2078,2427.2,2427.1,0.97680927]
[1730754247918,3.2078,2427.2,2427.1,3.0928147]
[1730754248110,3.2078,2427.2,2427.1,4.43305498]
[1730754248312,3.2078,2427.2,2427.1,3.53004955]
[1730754248512,3.2078,2427.2,2427.1,4.43265544]
[1730754249625,3.2078,2427.2,2427.1,2.7052863]
[1730754250217,3.2078,2427.2,2427.1,2.14075703]
[1730754250413,3.2078,2427.2,2427.1,2.70468816]
[1730754250724,3.2078,2427.2,2427.1,3.22015512]
[1730754251024,3.62006,2427.2,2427.1,3.22015512]
[1730754251225,3.62006,2427.2,2427.1,0.51546696]
[1730754251526,0.41238,2426.6,2426.5,0.41237]
[1730754251729,0.4124,2426.6,2426.5,0.56382487]
[1730754252018,0.41242,2426.5,2426.4,0.41243]
[1730754252326,1.0959,2426.5,2426.4,0.97630354]
[1730754252512,1.50832,2426.5,2426.4,0.41243]
[1730754253024,10.81134242,2426.5,2426.0,1.213]
[1730754253227,3.2078,2426.3,2426.0,1.213]
[1730754253524,3.2078,2426.3,2425.7,4.07672864]
[1730754253525,3.2078,2426.3,2425.7,1.1811]
[1730754253730,0.41252,2426.0,2425.8,1.77688234]
[1730754253919,0.41252,2426.0,2425.9,0.41252]
[1730754254320,0.4125,2426.1,2425.9,0.41252]
[1730754254522,2.69821378,2426.2,2425.9,0.41252]
[1730754254831,1.49021,2426.0,2425.9,0.41252]
[1730754255019,1.0777,2426.0,2425.9,0.41252]
[1730754255621,1.49021,2426.0,2425.9,0.41252]
[1730754255930,1.0777,2426.0,2425.9,0.41252]
[1730754259731,3.2078,2426.1,2425.8,1.213]
[1730754259930,3.2078,2426.1,2426.0,0.41251]
[1730754261330,3.2078,2426.1,2425.8,1.213]
[1730754261529,0.41257,2425.6,2425.5,1.59199]
[1730754261731,0.4126,2425.5,2425.4,0.4126]
[1730754261934,0.4126,2425.5,2425.3,0.41262]
[1730754261935,0.41261,2425.4,2425.3,0.41262]
[1730754262324,1.1383,2425.5,2425.0,3.62046]
[1730754262325,2.1698,2425.5,2425.0,3.62046]
[1730754262524,0.41264,2425.3,2425.2,0.41264]
[1730754262729,0.41264,2425.3,2425.0,4.3798]
[1730754263031,0.41264,2425.3,2425.2,0.41264]
[1730754263419,0.41264,2425.2,2425.1,0.41265]
[1730754264029,3.2078,2425.2,2425.1,0.41265]
[1730754264236,0.41263,2425.3,2425.2,0.41264]
[1730754264530,1.50842,2425.4,2425.0,1.172]
[1730754264730,1.50842,2425.4,2425.2,0.41264]
[1730754264731,0.41263,2425.3,2425.2,0.41264]
[1730754265231,0.41266,2425.1,2425.0,1.172]
[1730754265429,0.41268,2425.0,2424.9,0.41268]
[1730754265636,3.2078,2425.1,2424.7,1.1059]
[1730754265939,0.41272,2424.8,2424.7,1.172]
[1730754266327,0.41272,2424.8,2424.7,1.58473]
[1730754266539,0.4127,2424.9,2424.8,0.4127]
[1730754266835,0.41269,2424.9,2424.7,1.58471]
[1730754267221,40.8,2425.0,2424.7,1.58471]
[1730754267222,40.8,2425.0,2424.7,1.172]
[1730754267533,41.21269,2425.0,2424.9,0.41269]
[1730754267724,40.8,2425.0,2424.7,1.172]
[1730754268226,0.4127,2424.9,2424.8,0.4127]
[1730754268626,40.8,2425.0,2424.9,0.41269]
[1730754268927,3.2078,2425.1,2425.0,0.41268]
[1730754269831,3.62046,2425.1,2425.0,0.41268]
[1730754270134,0.41268,2425.0,2424.9,0.41268]
[1730754272532,4.3036,2425.4,2424.8,1.091]
[1730754272839,7.19922864,2425.4,2424.8,1.091]
[1730754273137,0.41268,2425.0,2424.9,0.41268]
[1730754273332,0.41268,2425.0,2424.9,0.41269]
[1730754273645,4.23938,2425.3,2424.8,1.091]
[1730754273840,4.23938,2425.3,2424.9,0.41269]
[1730754273841,0.41269,2425.0,2424.9,0.41269]
[1730754275035,0.41268,2425.0,2424.9,0.41268]
[1730754275237,0.4127,2424.9,2424.8,0.41269]
[1730754275430,3.2078,2425.0,2424.7,1.173]
[1730754275735,3.6205,2425.0,2424.9,0.41269]
[1730754275938,0.4127,2424.9,2424.8,0.41269]
[1730754276137,0.41266,2425.1,2425.0,0.41267]
[1730754276336,0.41265,2425.2,2425.1,0.41265]
[1730754279937,3.62045,2425.2,2425.1,0.41265]
[1730754280443,0.41265,2425.2,2425.1,0.41265]
[1730754280838,3.62045,2425.2,2425.1,0.41265]
[1730754282442,1.0958,2425.4,2424.9,2.273]
[1730754282641,4.3461,2425.5,2425.4,0.41261]
[1730754282839,4.75869,2425.5,2425.4,0.41261]
[1730754283744,4.3461,2425.5,2425.1,0.41266]
[1730754283950,4.3461,2425.5,2425.3,0.41261]
[1730754283951,0.41263,2425.4,2425.3,0.41261]
[1730754285140,0.41267,2425.1,2425.0,0.41265]
[1730754285537,0.41268,2425.0,2424.9,2.68568]
[1730754286244,0.41273,2424.8,2424.7,1.58572]
[1730754287942,1.5761,2424.9,2424.8,0.41271]
[1730754288147,1.1634,2424.9,2424.8,0.41271]
[1730754288657,3.62047,2425.1,2425.0,0.41268]
[1730754289044,3.62046,2425.1,2425.0,0.41268]
[1730754289352,3.62046,2425.1,2425.0,1.60658]
[1730754289353,3.2078,2425.1,2425.0,1.60658]
[1730754289653,3.62046,2425.1,2425.0,1.60658]
[1730754290439,0.41274,2424.7,2424.6,0.41274]
[1730754290642,0.41274,2424.7,2424.0,0.207]
[1730754290643,1.03187,2424.6,2424.0,0.207]
[1730754290954,2.89562864,2424.3,2423.9,1.173]
[1730754291257,2.89562864,2424.3,2424.1,0.41281]
[1730754291258,41.21282,2424.2,2424.1,0.41281]
[1730754291748,44.42062,2424.2,2424.1,0.41281]
[1730754291938,40.8,2424.2,2424.1,0.41281]
[1730754292341,44.42061,2424.2,2424.1,0.41281]
[1730754292744,40.8,2424.2,2424.1,0.41281]
[1730754292944,44.0078,2424.2,2424.1,0.41281]
[1730754293749,3.2078,2424.2,2424.1,0.41281]
[1730754295751,3.2078,2424.2,2424.1,4.53761]
[1730754296051,1.03164,2425.2,2424.4,0.41278]
[1730754296052,3.2078,2424.5,2424.4,0.41278]
[1730754296351,3.2078,2424.5,2424.4,1.64678]
[1730754296551,3.2078,2424.5,2424.4,5.77158]
[1730754296754,1.1969,2424.9,2424.7,0.41273]
[1730754296755,3.2078,2424.8,2424.7,0.41273]
[1730754297049,3.62051,2424.8,2424.7,0.41273]
[1730754297644,3.2078,2424.8,2424.7,0.41273]
[1730754298040,3.2078,2424.8,2424.7,4.53673]
[1730754300056,41.9275,2425.1,2425.0,0.41268]
[1730754300250,40.8,2425.1,2425.0,0.41268]
[1730754300441,4.4075,2425.4,2425.3,0.41262]
[1730754300843,44.0078,2425.4,2425.3,0.41262]
[1730754301058,3.2078,2425.4,2425.3,0.41262]
[1730754302249,3.2078,2425.4,2425.3,1.54562]
[1730754306357,3.2078,2425.4,2425.3,2.11062742]
[1730754306751,3.2078,2425.4,2425.3,6.23382742]
[1730754307454,3.2078,2425.9,2425.8,0.41254]
[1730754307958,44.0078,2425.9,2425.8,0.41254]
[1730754309054,2.2483,2426.1,2425.8,12.33076607]
[1730754309352,1.0892,2426.1,2426.0,0.41251]
[1730754309555,1.57455,2426.4,2426.0,3.2078]
[1730754309747,1.1621,2426.4,2426.3,0.41245]
[1730754310150,41.9245,2426.5,2426.4,0.41244]
[1730754310355,1.1621,2426.7,2426.6,0.4124]
[1730754311057,3.2078,2426.9,2426.8,0.41237]
[1730754311449,44.0078,2426.9,2426.8,4.53317]
[1730754312958,2.15515,2427.5,2426.8,4.53317]
[1730754312959,3.2078,2427.3,2426.8,7.01642864]
[1730754313162,1.53675,2427.5,2427.4,0.41227]
[1730754313347,0.41227,2427.4,2427.3,0.41228]
[1730754313551,41.21227,2427.4,2427.3,0.41228]
[1730754314965,40.8,2427.4,2427.3,0.41228]
[1730754317665,1.1256,2427.8,2427.7,0.41222]
[1730754317957,3.2078,2427.9,2427.8,0.4122]
[1730754318161,44.0078,2427.9,2427.8,0.4122]
[1730754318669,44.41999,2427.9,2427.7,0.41221]
[1730754319260,3.62,2427.8,2427.7,1.233]
[1730754319567,41.21219,2427.9,2427.8,0.4122]
[1730754319759,0.4122,2427.8,2427.7,1.64521]
[1730754320155,41.21219,2427.9,2427.7,1.233]
[1730754320357,40.8,2427.9,2427.8,0.4122]
[1730754320561,40.8,2427.9,2427.7,1.233]
[1730754320761,0.4122,2427.8,2427.7,1.233]
[1730754321060,0.4122,2427.8,2427.7,1.64522]
[1730754321360,40.8,2427.9,2427.8,0.4122]
[1730754321556,40.8,2427.9,2427.7,1.233]
[1730754321557,0.4122,2427.8,2427.7,0.41221]
[1730754322355,3.2078,2427.8,2427.2,4.02237864]
[1730754322558,0.41225,2427.6,2427.3,1.238]
[1730754322859,0.41225,2427.6,2427.5,0.41225]
[1730754323554,0.41225,2427.6,2427.5,1.65025]
[1730754323862,3.2078,2427.8,2427.5,1.238]
[1730754324064,0.41223,2427.6,2427.5,1.238]
[1730754324355,0.41226,2427.5,2427.4,1.238]
[1730754324562,1.58416,2427.5,2427.4,1.65027]
[1730754324763,1.1719,2427.5,2427.0,8.48282864]
[1730754324953,1.56337,2427.4,2427.3,0.41228]
[1730754325863,1.1511,2427.4,2427.3,0.41228]
[1730754326660,0.41224,2427.6,2427.2,5.16437864]
[1730754326862,2.76894,2427.6,2427.5,0.41225]
[1730754327158,2.3567,2427.6,2427.2,1.238]
[1730754327465,2.76894,2427.6,2427.5,0.41225]
[1730754328464,2.3567,2427.6,2427.2,1.238]
[1730754328965,2.76894,2427.6,2427.5,0.41225]
[1730754333059,2.3567,2427.6,2427.5,0.41225]
[1730754333262,2.76893,2427.6,2427.5,0.41225]
[1730754333458,2.3567,2427.6,2427.5,0.41225]
[1730754333962,2.76893,2427.6,2427.5,0.41225]
[1730754334161,2.3567,2427.6,2427.5,0.41225]
[1730754334355,40.8,2427.9,2427.4,6.10342864]
[1730754334558,40.8,2427.9,2427.8,0.4122]
[1730754336063,40.8,2427.9,2427.8,1.6502]
[1730754336676,3.61993,2428.3,2427.8,8.25282864]
[1730754336859,3.61993,2428.3,2428.2,0.41213]
[1730754336860,3.2078,2428.3,2428.2,0.41213]
[1730754337065,3.61991,2428.3,2428.2,0.41213]
[1730754337363,44.0078,2428.3,2428.2,0.41213]
[1730754337861,44.41991,2428.3,2428.2,0.41213]
[1730754338166,0.41215,2428.2,2428.1,0.41214]
[1730754338364,44.41992,2428.3,2428.2,0.41213]
[1730754340163,0.41214,2428.2,2428.1,0.41213]
[1730754340364,44.0078,2428.3,2428.0,1.0939]
[1730754340567,44.41992,2428.3,2428.2,0.41213]
[1730754340866,44.0078,2428.3,2428.0,1.0939]
[1730754341065,44.0078,2428.3,2427.8,5.16411864]
[1730754341066,45.0381,2428.3,2427.8,1.238]
[1730754341266,0.41218,2428.0,2427.9,0.41217]
[1730754342863,0.41218,2428.0,2427.8,1.238]
[1730754342864,0.41218,2427.9,2427.8,1.65019]
[1730754343059,2.74398,2427.9,2427.8,1.65019]
[1730754343457,2.74398,2427.9,2427.8,1.238]
[1730754343661,2.3318,2427.9,2427.7,1.238]
[1730754343869,0.41221,2427.8,2427.7,1.6502]
[1730754347867,0.41221,2427.8,2427.3,5.38072864]
[1730754347868,3.36227,2427.9,2427.3,3.7231]
[1730754348075,3.36227,2427.9,2427.6,0.41222]
[1730754348076,3.62004,2427.7,2427.6,0.41222]
[1730754351466,3.2078,2427.7,2427.6,0.41222]
[1730754351666,3.61996,2428.1,2428.0,0.41217]
[1730754351968,0.41214,2428.2,2427.8,2.89562864]
[1730754352169,0.41214,2428.2,2428.1,0.41213]
[1730754352875,40.8,2428.3,2428.2,0.41213]
[1730754353272,40.8,2428.3,2428.2,0.97428911]
[1730754353467,40.8,2428.3,2428.2,0.41213]
[1730754353877,41.21211,2428.3,2428.2,0.41213]
[1730754354273,41.21211,2428.3,2428.2,0.9747281]
[1730754354876,41.21211,2428.3,2428.2,0.5625981]
[1730754355170,0.41213,2428.2,2428.1,1.53234]
[1730754355370,0.41213,2428.2,2428.1,0.56310441]
[1730754355573,4.53053,2428.2,2428.1,0.56310441]
[1730754356179,7.73833,2428.2,2428.1,0.56310441]
[1730754357276,7.73833,2428.2,2428.0,0.41216]
[1730754357277,0.41215,2428.1,2428.0,0.41216]
[1730754357467,0.41215,2428.1,2428.0,1.87752007]
[1730754357670,0.41215,2428.1,2428.0,0.97575752]
[1730754357884,0.41215,2428.1,2428.0,0.56359752]
[1730754358568,0.4122,2427.8,2427.7,1.6392]
[1730754358768,0.4122,2427.8,2427.7,3.62049379]
[1730754359377,0.4122,2427.8,2427.7,3.62051379]
[1730754359973,1.108,2428.0,2427.7,3.62051379]
[1730754359974,3.61995,2428.2,2428.1,0.41215]
[1730754360771,7.73835,2428.2,2428.1,0.41215]
[1730754361081,3.61995,2428.2,2428.1,0.41215]
[1730754361276,3.61995,2428.2,2428.1,0.97698764]
[1730754361671,0.41215,2428.2,2428.1,0.97699385]
[1730754362166,0.41215,2428.1,2428.0,1.60826]
[1730754362371,0.41215,2428.1,2428.0,2.17312956]